fUST/lending_fUST_20260528
["ID","MTS","AMOUNT","RATE_DAILY","PERIOD"]
[423189796,1779912655000,-451.734332,0.00013699,2]
[423189789,1779912655000,-451.734332,0.00013699,2]
[423189798,1779912655000,-451.734332,0.00013699,2]
[423189801,1779912655000,-198.524462,0.00013699,2]
[423189793,1779912655000,-451.734332,0.00013699,2]
[423189794,1779912655000,-451.734332,0.00013699,2]
[423189799,1779912655000,-451.734332,0.00013699,2]
[423189781,1779912655000,-342.21299,0.00013699,2]
[423189790,1779912655000,-451.734332,0.00013699,2]
[423189788,1779912655000,-451.734332,0.00013699,2]
[423189791,1779912655000,-451.734332,0.00013699,2]
[423189782,1779912655000,-342.21299,0.00013699,2]
[423189792,1779912655000,-451.734332,0.00013699,2]
[423189783,1779912655000,-451.734332,0.00013699,2]
[423189866,1779912656000,-1099.4086,0.00014246,2]
[423189867,1779912656000,-505.91,0.00014246,2]
[423189877,1779912656000,-881.34,0.00014246,2]
[423189860,1779912656000,-511.944437,0.00014101,2]
[423189862,1779912656000,-499.16199257,0.00014244,2]
[423189865,1779912656000,-912.06,0.00014246,2]
[423189864,1779912656000,-791.0,0.00014244,2]
[423189861,1779912656000,-863.888875,0.00014101,2]
[423189863,1779912656000,-500.83800743,0.00014244,2]
[423189879,1779912656000,-693.71,0.00014246,2]
[423189869,1779912656000,-1274.28,0.00014246,2]
[423189874,1779912656000,-664.42,0.00014246,2]
[423189871,1779912656000,-513.74,0.00014246,2]
[423189873,1779912656000,-674.75,0.00014246,2]
[423189870,1779912656000,-500.0,0.00014246,2]
[423189868,1779912656000,-1981.07,0.00014246,2]
[423189878,1779912656000,-652.94,0.00014246,2]
[423189875,1779912656000,-516.29,0.00014246,2]
[423189880,1779912656000,-557.81,0.00014246,2]
[423189858,1779912656000,-800.0,0.00014094,2]
[423189882,1779912656000,-766.88,0.00014246,2]
[423189872,1779912656000,-1035.29,0.00014246,2]
[423189856,1779912656000,-650.44,0.00013972,2]
[423189839,1779912656000,-693.71,0.00013972,2]
[423189857,1779912656000,-9017.06876841,0.00013993,2]
[423189884,1779912656000,-593.57,0.00014246,2]
[423189840,1779912656000,-557.81,0.00013972,2]
[423189841,1779912656000,-739.95,0.00013972,2]
[423189842,1779912656000,-766.88,0.00013972,2]
[423189838,1779912656000,-652.94,0.00013972,2]
[423189836,1779912656000,-2157.38,0.00013972,2]
[423189837,1779912656000,-881.34,0.00013972,2]
[423189834,1779912656000,-664.42,0.00013972,2]
[423189835,1779912656000,-516.29,0.00013972,2]
[423189833,1779912656000,-674.75,0.00013972,2]
[423189844,1779912656000,-593.57,0.00013972,2]
[423189843,1779912656000,-1562.37,0.00013972,2]
[423189845,1779912656000,-2304.8,0.00013972,2]
[423189854,1779912656000,-622.62,0.00013972,2]
[423189851,1779912656000,-1027.08,0.00013972,2]
[423189849,1779912656000,-500.93,0.00013972,2]
[423189853,1779912656000,-2688.69,0.00013972,2]
[423189846,1779912656000,-751.15,0.00013972,2]
[423189852,1779912656000,-561.47,0.00013972,2]
[423189855,1779912656000,-1635.04,0.00013972,2]
[423189847,1779912656000,-1631.26,0.00013972,2]
[423189848,1779912656000,-680.05,0.00013972,2]
[423189850,1779912656000,-12161.88,0.00013972,2]
[423189859,1779912656000,-160.0,0.00014101,2]
[423189888,1779912656000,-680.05,0.00014246,2]
[423189876,1779912656000,-2157.38,0.00014246,2]
[423189892,1779912656000,-2688.69,0.00014246,2]
[423189917,1779912656000,-505.99,0.0001452,2]
[423189912,1779912656000,-1821.72363622,0.0001452,2]
[423189911,1779912656000,-455.88679585,0.0001452,2]
[423189914,1779912656000,-688.26382893,0.0001452,2]
[423189918,1779912656000,-286.55027993,0.0001452,2]
[423189909,1779912656000,-11330.4515354,0.00014425,2]
[423189930,1779912656000,-664.62,0.0001452,2]
[423189932,1779912656000,-2157.51,0.0001452,2]
[423189931,1779912656000,-516.31,0.0001452,2]
[423189919,1779912656000,-1146.20111971,0.0001452,2]
[423189910,1779912656000,-912.1,0.0001452,2]
[423189928,1779912656000,-1035.30729941,0.0001452,2]
[423189929,1779912656000,-674.83,0.0001452,2]
[423189920,1779912656000,-2578.95251934,0.0001452,2]
[423189922,1779912656000,-1981.15,0.0001452,2]
[423189927,1779912656000,-513.82,0.0001452,2]
[423189923,1779912656000,-7163.75699816,0.0001452,2]
[423189924,1779912656000,-10315.81007735,0.0001452,2]
[423189925,1779912656000,-1274.36,0.0001452,2]
[423189934,1779912656000,-653.07,0.0001452,2]
[423189933,1779912656000,-881.57,0.0001452,2]
[423189881,1779912656000,-739.95,0.00014246,2]
[423189921,1779912656000,-4584.80447882,0.0001452,2]
[423189913,1779912656000,-1080.8194,0.0001452,2]
[423189926,1779912656000,-273.6,0.0001452,2]
[423189916,1779912656000,-6188.18008595,0.0001452,2]
[423189908,1779912656000,-185.0,0.00014421,2]
[423189889,1779912656000,-500.93,0.00014246,2]
[423189885,1779912656000,-2304.8,0.00014246,2]
[423189883,1779912656000,-1562.37,0.00014246,2]
[423189886,1779912656000,-751.15,0.00014246,2]
[423189887,1779912656000,-1631.26,0.00014246,2]
[423189890,1779912656000,-12161.88,0.00014246,2]
[423189894,1779912656000,-1635.04,0.00014246,2]
[423189893,1779912656000,-622.62,0.00014246,2]
[423189895,1779912656000,-650.44,0.00014246,2]
[423189898,1779912656000,-160.0,0.00014372,2]
[423189891,1779912656000,-1027.08,0.00014246,2]
[423189896,1779912656000,-218.4885836,0.00014306,2]
[423189915,1779912656000,-2753.05531574,0.0001452,2]
[423189899,1779912656000,-20.65870235,0.00014372,2]
[423189907,1779912656000,-443.0,0.00014421,2]
[423189906,1779912656000,-222.14172712,0.00014372,2]
[423189905,1779912656000,-534.16,0.00014246,2]
[423189904,1779912656000,-534.16,0.00013972,2]
[423189903,1779912656000,-534.16,0.00013698,2]
[423189900,1779912656000,-735.04816065,0.00014372,2]
[423189901,1779912656000,-1129.27199988,0.00014372,2]
[423189897,1779912656000,-6882.5805035,0.00014338,2]
[423189902,1779912656000,-534.16,0.00013424,2]
[423189958,1779912657000,-152.0,0.0001472,7]
[423189954,1779912657000,-9017.06876841,0.00014663,2]
[423189957,1779912657000,-152.0,0.00014702,7]
[423189956,1779912657000,-1563.55170523,0.000147,2]
[423189952,1779912657000,-534.16,0.0001452,2]
[423189953,1779912657000,-550.310508,0.00014521,2]
[423189966,1779912657000,-177.60439859,0.00014859,29]
[423189955,1779912657000,-648.0,0.00014683,2]
[423189950,1779912657000,-1635.1,0.0001452,2]
[423189970,1779912657000,-583.73135769,0.000149,2]
[423189959,1779912657000,-152.0,0.0001472,7]
[423189963,1779912657000,-921.499987,0.00014806,2]
[423189951,1779912657000,-650.58,0.0001452,2]
[423189948,1779912657000,-2688.79,0.0001452,2]
[423189945,1779912657000,-500.97,0.0001452,2]
[423189946,1779912657000,-12161.93317743,0.0001452,2]
[423189947,1779912657000,-1027.17,0.0001452,2]
[423189939,1779912657000,-1562.39,0.0001452,2]
[423189938,1779912657000,-767.0,0.0001452,2]
[423189943,1779912657000,-1631.46,0.0001452,2]
[423189937,1779912657000,-740.01,0.0001452,2]
[423189941,1779912657000,-593.8,0.0001452,2]
[423189942,1779912657000,-751.28,0.0001452,2]
[423189936,1779912657000,-557.94,0.0001452,2]
[423189935,1779912657000,-693.89,0.0001452,2]
[423189940,1779912657000,-2304.93,0.0001452,2]
[423189944,1779912657000,-680.19,0.0001452,2]
[423189960,1779912657000,-367.30654527,0.00014746,2]
[423189949,1779912657000,-622.85,0.0001452,2]
[423189961,1779912657000,-152.0,0.00014749,7]
[423189994,1779912657000,-250884.47837729,0.00015,15]
[423189965,1779912657000,-166.9453351,0.00014812,2]
[423189995,1779912657000,-609.82290944,0.00015,15]
[423189996,1779912657000,-462.81800002,0.00015,15]
[423189991,1779912657000,-451.734332,0.00014986,2]
[423189993,1779912657000,-160.24795256,0.00014999,2]
[423189985,1779912657000,-342.21299,0.00014986,2]
[423189989,1779912657000,-451.734332,0.00014986,2]
[423189987,1779912657000,-342.21299,0.00014986,2]
[423189962,1779912657000,-172.0,0.00014795,3]
[423189983,1779912657000,-195.144538,0.00014986,2]
[423189990,1779912657000,-451.734332,0.00014986,2]
[423189988,1779912657000,-342.212988,0.00014986,2]
[423189986,1779912657000,-342.21299,0.00014986,2]
[423189984,1779912657000,-195.144541,0.00014986,2]
[423189977,1779912657000,-199.583038,0.00014986,2]
[423189992,1779912657000,-451.734328,0.00014986,2]
[423189980,1779912657000,-195.144538,0.00014986,2]
[423189981,1779912657000,-151.0,0.00014986,2]
[423189964,1779912657000,-631.4707114,0.00014812,2]
[423189969,1779912657000,-583.73135769,0.000149,2]
[423189968,1779912657000,-583.7313577,0.000149,2]
[423189974,1779912657000,-199.583038,0.00014986,2]
[423189972,1779912657000,-7175.59920642,0.0001496,2]
[423189967,1779912657000,-794.0,0.000149,2]
[423189973,1779912657000,-800.0,0.00014967,2]
[423189975,1779912657000,-199.583038,0.00014986,2]
[423189979,1779912657000,-199.583034,0.00014986,2]
[423189982,1779912657000,-195.144538,0.00014986,2]
[423189978,1779912657000,-151.0,0.00014986,2]
[423189976,1779912657000,-151.0,0.00014986,2]
[423189971,1779912657000,-800.0,0.00014947,2]
[423190027,1779913831000,-300.0,7.558e-05,2]
[423190029,1779913831000,-1200.0,7.581e-05,2]
[423190030,1779913831000,-463.974,7.584e-05,2]
[423190025,1779913831000,-300.0,7.558e-05,2]
[423190035,1779913831000,-911.81769023,7.66e-05,2]
[423190028,1779913831000,-485.677811,7.56e-05,2]
[423190019,1779913831000,-598.6213911,6.572e-05,2]
[423190033,1779913831000,-1043.01336115,7.595e-05,2]
[423190026,1779913831000,-300.0,7.558e-05,2]
[423190023,1779913831000,-4615.09542832,7.5e-05,2]
[423190022,1779913831000,-205.78453389,6.94e-05,2]
[423190021,1779913831000,-160.566907,6.639e-05,2]
[423190020,1779913831000,-4401.3786089,6.572e-05,2]
[423190034,1779913831000,-40692.52439858,7.6e-05,2]
[423190031,1779913831000,-1043.01336115,7.595e-05,2]
[423190024,1779913831000,-300.0,7.557e-05,2]
[423190037,1779913831000,-300.0,7.835e-05,2]
[423190032,1779913831000,-1043.01336115,7.595e-05,2]
[423190051,1779913831000,-300.0,7.835e-05,2]
[423190050,1779913831000,-300.0,7.835e-05,2]
[423190042,1779913831000,-300.0,7.835e-05,2]
[423190045,1779913831000,-300.0,7.835e-05,2]
[423190046,1779913831000,-300.0,7.835e-05,2]
[423190043,1779913831000,-300.0,7.835e-05,2]
[423190044,1779913831000,-300.0,7.835e-05,2]
[423190038,1779913831000,-300.0,7.835e-05,2]
[423190041,1779913831000,-300.0,7.835e-05,2]
[423190049,1779913831000,-300.0,7.835e-05,2]
[423190048,1779913831000,-300.0,7.835e-05,2]
[423190040,1779913831000,-300.0,7.835e-05,2]
[423190036,1779913831000,-1277.70373394,7.76e-05,2]
[423190047,1779913831000,-300.0,7.835e-05,2]
[423190039,1779913831000,-300.0,7.835e-05,2]
[423190052,1779913832000,-1337.95756946,7.86e-05,2]
[423190053,1779913832000,-362.20201755,7.96e-05,2]
[423190062,1779913840000,-500.0,7.559e-05,2]
[423190064,1779913840000,-500.0,7.559e-05,2]
[423190061,1779913840000,-284.55512148,7.559e-05,2]
[423190066,1779913840000,-320.33430423,7.559e-05,2]
[423190065,1779913840000,-500.0,7.559e-05,2]
[423190063,1779913840000,-500.0,7.559e-05,2]
[423190088,1779913841000,-1165.12025425,7.96e-05,2]
[423190090,1779913841000,-1764.09744869,8.06e-05,2]
[423190084,1779913841000,-1043.01336115,7.595e-05,2]
[423190085,1779913841000,-1043.01336115,7.595e-05,2]
[423190089,1779913841000,-163.8664377,8e-05,2]
[423190086,1779913841000,-1043.01336115,7.595e-05,2]
[423190082,1779913841000,-1043.01336115,7.595e-05,2]
[423190093,1779913841000,-500.0,8.219e-05,2]
[423190094,1779913841000,-456.12,8.219e-05,2]
[423190083,1779913841000,-1043.01336115,7.595e-05,2]
[423190080,1779913841000,-1043.01336115,7.595e-05,2]
[423190079,1779913841000,-1043.01336115,7.595e-05,2]
[423190078,1779913841000,-1043.01336115,7.595e-05,2]
[423190077,1779913841000,-970.53111894,7.595e-05,2]
[423190076,1779913841000,-72.48224221,7.595e-05,2]
[423190074,1779913841000,-628.60870087,7.559e-05,2]
[423190073,1779913841000,-500.0,7.559e-05,2]
[423190075,1779913841000,-1043.01336115,7.595e-05,2]
[423190072,1779913841000,-179.66569577,7.559e-05,2]
[423190081,1779913841000,-1043.01336115,7.595e-05,2]
[423190092,1779913841000,-500.0,8.219e-05,2]
[423190111,1779913841000,-500.0,8.493e-05,2]
[423190087,1779913841000,-1043.01336115,7.595e-05,2]
[423190091,1779913841000,-500.49150463,8.219e-05,2]
[423190113,1779913841000,-500.0,8.493e-05,2]
[423190112,1779913841000,-500.0,8.493e-05,2]
[423190115,1779913841000,-286.57,8.493e-05,2]
[423190114,1779913841000,-500.0,8.493e-05,2]
[423190110,1779913841000,-1531.0,8.339e-05,2]
[423190108,1779913841000,-1776.9408098,8.287e-05,2]
[423190107,1779913841000,-246.00466629,8.219e-05,2]
[423190105,1779913841000,-500.0,8.219e-05,2]
[423190106,1779913841000,-500.0,8.219e-05,2]
[423190109,1779913841000,-300.0,8.314e-05,2]
[423190103,1779913841000,-500.0,8.219e-05,2]
[423190104,1779913841000,-500.0,8.219e-05,2]
[423190099,1779913841000,-500.0,8.219e-05,2]
[423190098,1779913841000,-500.0,8.219e-05,2]
[423190100,1779913841000,-500.0,8.219e-05,2]
[423190095,1779913841000,-500.0,8.219e-05,2]
[423190096,1779913841000,-500.0,8.219e-05,2]
[423190102,1779913841000,-500.0,8.219e-05,2]
[423190101,1779913841000,-500.0,8.219e-05,2]
[423190097,1779913841000,-389.96272982,8.219e-05,2]
[423190151,1779913842000,-2532.89748876,0.00011026,2]
[423190140,1779913842000,-1021.97240586,0.000102,2]
[423190141,1779913842000,-1021.97240586,0.000103,2]
[423190142,1779913842000,-1021.97240586,0.000104,2]
[423190145,1779913842000,-1021.97240586,0.000106,2]
[423190146,1779913842000,-1021.97240586,0.000107,2]
[423190156,1779913842000,-285.28767257,0.00012055,3]
[423190149,1779913842000,-279.86696609,0.0001094,2]
[423190159,1779913842000,-443.0,0.00012163,2]
[423190158,1779913842000,-185.0,0.00012163,2]
[423190174,1779913842000,-406687.97642399,0.0001397,2]
[423190147,1779913842000,-1021.97240586,0.000108,2]
[423190160,1779913842000,-600.0,0.00012574,2]
[423190153,1779913842000,-163.8664377,0.00011432,2]
[423190155,1779913842000,-150.92,0.00012,2]
[423190154,1779913842000,-2715.90308662,0.00011574,2]
[423190161,1779913842000,-2959.67588173,0.0001267,2]
[423190169,1779913842000,-3203.44867683,0.00013765,2]
[423190163,1779913842000,-3017.81523709,0.00013217,2]
[423190164,1779913842000,-180.02520353,0.00013699,2]
[423190143,1779913842000,-2337.88159226,0.00010478,2]
[423190148,1779913842000,-1021.97240586,0.000109,2]
[423190138,1779913842000,-342.07827845,0.0001,2]
[423190131,1779913842000,-160.0,9.588e-05,2]
[423190139,1779913842000,-1021.97240586,0.000101,2]
[423190118,1779913842000,-500.0,8.767e-05,2]
[423190117,1779913842000,-437.36,8.493e-05,2]
[423190116,1779913842000,-190.04,8.493e-05,2]
[423190119,1779913842000,-500.0,8.767e-05,2]
[423190121,1779913842000,-238.16375513,8.767e-05,2]
[423190124,1779913842000,-242.82574999,8.94e-05,2]
[423190122,1779913842000,-250.0,8.772e-05,2]
[423190123,1779913842000,-2026.5593478,8.835e-05,2]
[423190125,1779913842000,-500.0,9.041e-05,2]
[423190126,1779913842000,-500.0,9.315e-05,2]
[423190137,1779913842000,-677.94754854,0.0001,2]
[423190128,1779913842000,-160.0,9.588e-05,2]
[423190129,1779913842000,-160.0,9.588e-05,2]
[423190173,1779913842000,-80288.0,0.00013966,2]
[423190132,1779913842000,-2276.1778858,9.93e-05,2]
[423190120,1779913842000,-500.0,8.767e-05,2]
[423190130,1779913842000,-766.98895499,9.588e-05,2]
[423190134,1779913842000,-2141.45978892,0.0001,2]
[423190133,1779913842000,-1021.97240586,0.0001,2]
[423190144,1779913842000,-1021.97240586,0.000105,2]
[423190136,1779913842000,-14333.10595732,0.0001,2]
[423190135,1779913842000,-1000.0,0.0001,2]
[423190127,1779913842000,-2190.23732793,9.383e-05,2]
[423190172,1779913842000,-720.0,0.00013831,2]
[423190157,1779913842000,-2783.26211655,0.00012122,2]
[423190166,1779913842000,-198.5244627,0.00013699,2]
[423190190,1779913842000,-1318.46558082,0.0001472,7]
[423190192,1779913842000,-152.0,0.00014723,7]
[423190188,1779913842000,-800.0,0.00014674,2]
[423190194,1779913842000,-800.0,0.00014737,2]
[423190197,1779913842000,-800.0,0.00014744,2]
[423190198,1779913842000,-800.0,0.00014746,2]
[423190203,1779913842000,-800.0,0.00014788,2]
[423190205,1779913842000,-410.80305162,0.00014816,2]
[423190206,1779913842000,-800.0,0.00014816,2]
[423190214,1779913842000,-291.86567884,0.000149,2]
[423190195,1779913842000,-800.0,0.0001474,2]
[423190204,1779913842000,-156.0,0.00014795,3]
[423190213,1779913842000,-291.86567884,0.000149,2]
[423190209,1779913842000,-800.0,0.00014899,2]
[423190208,1779913842000,-800.0,0.00014862,2]
[423190215,1779913842000,-3092.275431,0.00014936,2]
[423190207,1779913842000,-3447.22147194,0.00014861,2]
[423190212,1779913842000,-291.86567886,0.000149,2]
[423190210,1779913842000,-6311.94813795,0.000149,2]
[423190218,1779913842000,-353.94939829,0.0001494,2]
[423190217,1779913842000,-166.9453351,0.00014936,2]
[423190220,1779913842000,-244300.12157074,0.00015,15]
[423190216,1779913842000,-631.4707114,0.00014936,2]
[423190193,1779913842000,-800.0,0.00014732,2]
[423190191,1779913842000,-5268.58846094,0.0001472,7]
[423190202,1779913842000,-800.0,0.00014785,2]
[423190165,1779913842000,-1000.0,0.00013699,2]
[423190167,1779913842000,-164.10778299,0.00013699,7]
[423190168,1779913842000,-328.21556597,0.00013699,7]
[423190170,1779913842000,-152.0,0.00013791,30]
[423190171,1779913842000,-500.0,0.00013828,2]
[423190175,1779913842000,-637.99,0.0001397,2]
[423190184,1779913842000,-800.0,0.00014655,2]
[423190180,1779913842000,-800.0,0.00014517,2]
[423190177,1779913842000,-500.0,0.00014178,2]
[423190178,1779913842000,-3252.36835763,0.00014313,2]
[423190176,1779913842000,-500.0,0.00014178,2]
[423190186,1779913842000,-800.0,0.00014668,2]
[423190182,1779913842000,-458.2645304,0.00014521,2]
[423190179,1779913842000,-159.6109385,0.00014386,2]
[423190183,1779913842000,-800.0,0.00014592,2]
[423190187,1779913842000,-800.0,0.00014672,2]
[423190222,1779913842000,-934.32112647,0.00015,15]
[423190181,1779913842000,-2192.63,0.0001452,2]
[423190185,1779913842000,-800.0,0.00014663,2]
[423190189,1779913842000,-1042.36780349,0.000147,2]
[423190199,1779913842000,-800.0,0.00014748,2]
[423190201,1779913842000,-800.0,0.00014778,2]
[423190200,1779913842000,-152.0,0.00014753,7]
[423190162,1779913842000,-316.90818219,0.0001294,2]
[423190224,1779913843000,-1930.04165381,0.00015,15]
[423190238,1779913846000,-311.94368929,7.5e-05,2]
[423190240,1779913846000,-4590.01242646,0.00015,15]
[423190239,1779913846000,-694.91186899,0.000147,2]
[423190241,1779913847000,-903.88701658,0.00015,15]
[423191058,1779913891000,-300.0,7.594e-05,2]
[423191136,1779915032000,-434.57727201,6.954e-05,2]
[423191142,1779915032000,-4311.231625,6.954e-05,2]
[423191148,1779915032000,-300.0,7.079e-05,2]
[423191155,1779915032000,-2882.09689831,7.1e-05,2]
[423191150,1779915032000,-1200.0,7.079e-05,2]
[423191146,1779915032000,-300.0,7.079e-05,2]
[423191134,1779915032000,-254.19110299,6.954e-05,2]
[423191144,1779915032000,-300.0,7.079e-05,2]
[423191152,1779915032000,-1576.0558457,7.08e-05,2]
[423191165,1779915032000,-160.7600407,7.167e-05,2]
[423191161,1779915032000,-3537.21853113,7.1e-05,2]
[423191163,1779915032000,-197.26241699,7.131e-05,2]
[423191157,1779915032000,-3751.08025894,7.1e-05,2]
[423191154,1779915032000,-1576.0558457,7.08e-05,2]
[423191159,1779915032000,-3209.65771468,7.1e-05,2]
[423191167,1779915033000,-6814.17872285,7.197e-05,2]
[423191252,1779915038000,-300.0,7.746e-05,2]
[423191253,1779915038000,-300.0,7.746e-05,2]
[423191254,1779915038000,-300.0,7.746e-05,2]
[423191256,1779915038000,-600.0,7.746e-05,2]
[423191260,1779915038000,-500.0,8.219e-05,2]
[423191259,1779915038000,-500.0,8.219e-05,2]
[423191255,1779915038000,-300.0,7.746e-05,2]
[423191258,1779915038000,-570.3845,8.219e-05,2]
[423191261,1779915038000,-500.0,8.219e-05,2]
[423191263,1779915038000,-500.0,8.219e-05,2]
[423191262,1779915038000,-500.0,8.219e-05,2]
[423191266,1779915038000,-500.0,8.219e-05,2]
[423191264,1779915038000,-500.0,8.219e-05,2]
[423191250,1779915038000,-300.0,7.746e-05,2]
[423191257,1779915038000,-3842.75615121,7.944e-05,2]
[423191251,1779915038000,-300.0,7.746e-05,2]
[423191238,1779915038000,-558.34888508,7.4e-05,2]
[423191249,1779915038000,-300.0,7.746e-05,2]
[423191267,1779915038000,-500.0,8.219e-05,2]
[423191233,1779915038000,-3421.67861095,7.197e-05,2]
[423191234,1779915038000,-296050.13538647,7.197e-05,2]
[423191235,1779915038000,-546687.00355985,7.197e-05,2]
[423191237,1779915038000,-1391651.83069662,7.298e-05,2]
[423191236,1779915038000,-533.54,7.252e-05,2]
[423191248,1779915038000,-300.0,7.746e-05,2]
[423191242,1779915038000,-300.0,7.746e-05,2]
[423191240,1779915038000,-256.48125996,7.4e-05,2]
[423191239,1779915038000,-260.87257794,7.4e-05,2]
[423191244,1779915038000,-300.0,7.746e-05,2]
[423191245,1779915038000,-300.0,7.746e-05,2]
[423191246,1779915038000,-300.0,7.746e-05,2]
[423191247,1779915038000,-300.0,7.746e-05,2]
[423191241,1779915038000,-300.0,7.746e-05,2]
[423191265,1779915038000,-500.0,8.219e-05,2]
[423191243,1779915038000,-300.0,7.746e-05,2]
[423191269,1779915038000,-500.0,8.219e-05,2]
[423191289,1779915038000,-500.0,8.219e-05,2]
[423191292,1779915038000,-438.85846126,8.219e-05,2]
[423191295,1779915038000,-500.0,8.219e-05,2]
[423191294,1779915038000,-500.0,8.219e-05,2]
[423191302,1779915038000,-500.0,8.219e-05,2]
[423191290,1779915038000,-500.0,8.219e-05,2]
[423191291,1779915038000,-500.0,8.219e-05,2]
[423191293,1779915038000,-500.0,8.219e-05,2]
[423191296,1779915038000,-500.0,8.219e-05,2]
[423191298,1779915038000,-500.0,8.219e-05,2]
[423191299,1779915038000,-197.9673449,8.219e-05,2]
[423191297,1779915038000,-500.0,8.219e-05,2]
[423191300,1779915038000,-500.0,8.219e-05,2]
[423191303,1779915038000,-500.0,8.219e-05,2]
[423191268,1779915038000,-500.0,8.219e-05,2]
[423191288,1779915038000,-500.0,8.219e-05,2]
[423191287,1779915038000,-500.0,8.219e-05,2]
[423191301,1779915038000,-500.0,8.219e-05,2]
[423191284,1779915038000,-500.0,8.219e-05,2]
[423191286,1779915038000,-500.0,8.219e-05,2]
[423191271,1779915038000,-500.0,8.219e-05,2]
[423191274,1779915038000,-500.0,8.219e-05,2]
[423191272,1779915038000,-500.0,8.219e-05,2]
[423191273,1779915038000,-500.0,8.219e-05,2]
[423191278,1779915038000,-500.0,8.219e-05,2]
[423191275,1779915038000,-500.0,8.219e-05,2]
[423191270,1779915038000,-500.0,8.219e-05,2]
[423191276,1779915038000,-500.0,8.219e-05,2]
[423191281,1779915038000,-500.0,8.219e-05,2]
[423191277,1779915038000,-500.0,8.219e-05,2]
[423191280,1779915038000,-500.0,8.219e-05,2]
[423191283,1779915038000,-500.0,8.219e-05,2]
[423191282,1779915038000,-500.0,8.219e-05,2]
[423191279,1779915038000,-500.0,8.219e-05,2]
[423191285,1779915038000,-500.0,8.219e-05,2]
[423191333,1779915039000,-500.0,8.219e-05,2]
[423191334,1779915039000,-500.0,8.219e-05,2]
[423191335,1779915039000,-500.0,8.219e-05,2]
[423191337,1779915039000,-500.0,8.219e-05,2]
[423191330,1779915039000,-500.0,8.219e-05,2]
[423191338,1779915039000,-500.0,8.219e-05,2]
[423191344,1779915039000,-500.0,8.219e-05,2]
[423191332,1779915039000,-500.0,8.219e-05,2]
[423191336,1779915039000,-500.0,8.219e-05,2]
[423191340,1779915039000,-500.0,8.219e-05,2]
[423191347,1779915039000,-936.37,8.219e-05,2]
[423191341,1779915039000,-500.0,8.219e-05,2]
[423191343,1779915039000,-500.0,8.219e-05,2]
[423191342,1779915039000,-500.0,8.219e-05,2]
[423191346,1779915039000,-500.0,8.219e-05,2]
[423191348,1779915039000,-500.0,8.219e-05,2]
[423191345,1779915039000,-500.0,8.219e-05,2]
[423191349,1779915039000,-500.0,8.219e-05,2]
[423191350,1779915039000,-500.0,8.219e-05,2]
[423191351,1779915039000,-663.74,8.219e-05,2]
[423191331,1779915039000,-500.0,8.219e-05,2]
[423191339,1779915039000,-876.7,8.219e-05,2]
[423191328,1779915039000,-500.0,8.219e-05,2]
[423191314,1779915039000,-542.85,8.219e-05,2]
[423191323,1779915039000,-500.0,8.219e-05,2]
[423191305,1779915039000,-500.0,8.219e-05,2]
[423191304,1779915039000,-500.0,8.219e-05,2]
[423191306,1779915039000,-500.0,8.219e-05,2]
[423191307,1779915039000,-500.0,8.219e-05,2]
[423191308,1779915039000,-500.0,8.219e-05,2]
[423191312,1779915039000,-500.0,8.219e-05,2]
[423191310,1779915039000,-500.0,8.219e-05,2]
[423191352,1779915039000,-500.0,8.219e-05,2]
[423191309,1779915039000,-500.0,8.219e-05,2]
[423191313,1779915039000,-500.0,8.219e-05,2]
[423191329,1779915039000,-500.0,8.219e-05,2]
[423191311,1779915039000,-500.0,8.219e-05,2]
[423191317,1779915039000,-500.0,8.219e-05,2]
[423191316,1779915039000,-500.0,8.219e-05,2]
[423191315,1779915039000,-500.0,8.219e-05,2]
[423191318,1779915039000,-500.0,8.219e-05,2]
[423191320,1779915039000,-500.0,8.219e-05,2]
[423191321,1779915039000,-500.0,8.219e-05,2]